fUST/lending_fUST_20250818
["ID","MTS","AMOUNT","RATE_DAILY","PERIOD"]
[380006284,1755471039230,-481.1624699,0.00019178,2]
[380006286,1755471039239,-480.0,0.00019178,2]
[380006288,1755471039249,-480.0,0.00019178,2]
[380006290,1755471039275,-500.0,0.00019178,2]
[380006293,1755471039312,-461.16645628,0.00019178,2]
[380006296,1755471039326,-480.0,0.00019178,2]
[380006298,1755471039336,-480.0,0.00019178,2]
[380006300,1755471039346,-480.0,0.00019178,2]
[380006302,1755471039356,-460.0,0.00019178,2]
[380006304,1755471039366,-480.0,0.00019178,2]
[380006306,1755471039377,-633.63,0.00019178,2]
[380006308,1755471039387,-480.0,0.00019178,2]
[380006310,1755471039397,-480.0,0.00019178,2]
[380006312,1755471039406,-480.0,0.00019178,2]
[380006313,1755471039415,-480.0,0.00019178,2]
[380006315,1755471039426,-480.0,0.00019178,2]
[380006317,1755471039435,-480.0,0.00019178,2]
[380006320,1755471039446,-480.0,0.00019178,2]
[380006322,1755471039460,-480.0,0.00019178,2]
[380006324,1755471039470,-480.0,0.00019178,2]
[380006326,1755471039480,-1255.67,0.00019178,2]
[380006328,1755471039489,-480.0,0.00019178,2]
[380006330,1755471039499,-480.0,0.00019178,2]
[380006332,1755471039508,-499.82459895,0.00019178,2]
[380006334,1755471039518,-480.0,0.00019178,2]
[380006336,1755471039529,-480.0,0.00019178,2]
[380006338,1755471039539,-460.0,0.00019178,2]
[380006340,1755471039549,-480.0,0.00019178,2]
[380006342,1755471039558,-480.0,0.00019178,2]
[380006344,1755471039567,-480.0,0.00019178,2]
[380006346,1755471039577,-751.89,0.00019178,2]
[380006348,1755471039586,-480.0,0.00019178,2]
[380006350,1755471039596,-480.0,0.00019178,2]
[380006352,1755471039605,-480.0,0.00019178,2]
[380006354,1755471039614,-480.0,0.00019178,2]
[380006356,1755471039624,-480.0,0.00019178,2]
[380006358,1755471039633,-480.0,0.00019178,2]
[380006360,1755471039643,-480.0,0.00019178,2]
[380006362,1755471039652,-480.0,0.00019178,2]
[380006364,1755471039661,-500.0,0.00019178,2]
[380006366,1755471039671,-480.0,0.00019178,2]
[380006368,1755471039680,-480.0,0.00019178,2]
[380006370,1755471039689,-480.0,0.00019178,2]
[380006372,1755471039698,-480.0,0.00019178,2]
[380006374,1755471039707,-512.48,0.00019178,2]
[380006376,1755471039716,-461.64542696,0.00019178,2]
[380006378,1755471039726,-480.0,0.00019178,2]
[380006379,1755471039735,-480.0,0.00019178,2]
[380006382,1755471039744,-480.0,0.00019178,2]
[380006383,1755471039754,-480.0,0.00019178,2]
[380006385,1755471039764,-480.0,0.00019178,2]
[380006387,1755471039774,-480.0,0.00019178,2]
[380006389,1755471039784,-460.0,0.00019178,2]
[380006390,1755471039792,-480.0,0.00019178,2]
[380006391,1755471039802,-480.0,0.00019178,2]
[380006392,1755471039811,-510.63,0.00019178,2]
[380006393,1755471039819,-480.0,0.00019178,2]
[380006394,1755471039829,-153.0,0.00019266,2]
[380006395,1755471039838,-500.0,0.0001935,2]
[380006396,1755471039847,-479.4,0.0001935,2]
[380006397,1755471039856,-153.0,0.000194,2]
[380006398,1755471039865,-160.7855539,0.000194,2]
[380006399,1755471039874,-153.0,0.000194,2]
[380006400,1755471039883,-306.0,0.000194,2]
[380006401,1755471039892,-153.0,0.000194,2]
[380006402,1755471039901,-1353.0,0.00019425,2]
[380006403,1755471039913,-480.0,0.00019451,2]
[380006404,1755471039922,-480.0,0.00019451,2]
[380006405,1755471039931,-604.94823624,0.00019451,2]
[380006406,1755471039941,-480.0,0.00019451,2]
[380006407,1755471039950,-480.0,0.00019451,2]
[380006408,1755471039959,-267.48278515,0.00019451,2]
[380006409,1755471039967,-480.0,0.00019451,2]
[380006410,1755471039977,-480.0,0.00019451,2]
[380006411,1755471039986,-480.0,0.00019451,2]
[380006412,1755471039995,-156.16090769,0.00019451,2]
[380006413,1755471040004,-532.3722477,0.00019451,2]
[380006414,1755471040013,-480.0,0.00019452,2]
[380006415,1755471040022,-480.0,0.00019452,2]
[380006416,1755471040031,-492.20361414,0.00019452,2]
[380006417,1755471040040,-480.0,0.00019452,2]
[380006418,1755471040049,-480.0,0.00019452,2]
[380006419,1755471040058,-1886.36,0.00019452,2]
[380006420,1755471040066,-480.0,0.00019452,2]
[380006421,1755471040076,-1173.43,0.00019452,2]
[380006422,1755471040085,-380.81,0.00019452,2]
[380006423,1755471040094,-480.0,0.00019452,2]
[380006424,1755471040103,-480.0,0.00019452,2]
[380006426,1755471040112,-480.0,0.00019452,2]
[380006427,1755471040123,-480.0,0.00019452,2]
[380006428,1755471040132,-633.63,0.00019452,2]
[380006430,1755471040141,-480.0,0.00019452,2]
[380006432,1755471040150,-1255.67,0.00019452,2]
[380006434,1755471040159,-751.89,0.00019452,2]
[380006436,1755471040169,-480.0,0.00019452,2]
[380006438,1755471040178,-480.0,0.00019452,2]
[380006440,1755471040187,-480.0,0.00019452,2]
[380006442,1755471040196,-513.07035947,0.00019489,2]
[380006444,1755471040206,-153.0,0.000195,2]
[380006446,1755471040215,-153.0,0.000195,2]
[380006448,1755471040224,-153.0,0.000195,2]
[380006450,1755471040234,-153.0,0.000195,2]
[380006452,1755471040245,-153.0,0.000195,2]
[380006454,1755471040254,-153.0,0.000195,2]
[380006456,1755471040264,-161.4346216,0.000195,2]
[380006458,1755471040273,-198.0,0.00019521,2]
[380006460,1755471040282,-436.0,0.00019521,2]
[380006462,1755471040292,-151.0,0.00019521,2]
[380006464,1755471040301,-151.0,0.00019521,2]
[380006466,1755471040310,-151.0,0.00019521,2]
[380006468,1755471040320,-198.0,0.00019521,2]
[380006470,1755471040330,-151.0,0.00019521,2]
[380006471,1755471040341,-151.0,0.00019521,2]
[380006473,1755471040350,-151.0,0.00019521,2]
[380006475,1755471040360,-151.0,0.00019521,2]
[380006477,1755471040369,-151.0,0.00019521,2]
[380006479,1755471040380,-294.0,0.00019551,2]
[380006481,1755471040390,-294.0,0.00019595,2]
[380006483,1755471040400,-159.4992174,0.000196,2]
[380006485,1755471040410,-294.0,0.0001969,2]
[380006487,1755471040420,-294.0,0.00019697,2]
[380006489,1755471040430,-153.0,0.000197,2]
[380006491,1755471040440,-480.0,0.00019725,2]
[380006493,1755471040449,-480.0,0.00019725,2]
[380006495,1755471040461,-387.19,0.00019726,2]
[380006497,1755471040470,-480.0,0.00019726,2]
[380006499,1755471040480,-480.0,0.00019726,2]
[380006514,1755471040614,-480.0,0.00019726,2]
[380006517,1755471040625,-1886.36,0.00019726,2]
[380006519,1755471040634,-1000.0,0.00019726,2]
[380006520,1755471040645,-1000.0,0.00019726,2]
[380006522,1755471040655,-1000.0,0.00019726,2]
[380006524,1755471040664,-513.81797671,0.00019726,2]
[380006526,1755471040674,-1173.43,0.00019726,2]
[380006528,1755471040683,-480.0,0.00019726,2]
[380006530,1755471040693,-480.0,0.00019726,2]
[380006532,1755471040702,-480.0,0.00019726,2]
[380006535,1755471040713,-480.0,0.00019726,2]
[380006537,1755471040722,-633.63,0.00019726,2]
[380006539,1755471040732,-480.0,0.00019726,2]
[380006540,1755471040743,-1255.67,0.00019726,2]
[380006542,1755471040752,-751.89,0.00019726,2]
[380006544,1755471040761,-480.0,0.00019726,2]
[380006546,1755471040771,-480.0,0.00019726,2]
[380006548,1755471040780,-480.0,0.00019726,2]
[380006550,1755471040790,-673.64326332,0.00019745,2]
[380006552,1755471040800,-500.0,0.00019758,2]
[380006555,1755471040809,-342.57096533,0.00019758,2]
[380006556,1755471040818,-150.0,0.00019759,2]
[380006558,1755471040827,-1000.0,0.00019759,2]
[380006560,1755471040837,-1000.0,0.00019759,2]
[380006562,1755471040846,-1000.0,0.00019759,2]
[380006564,1755471040856,-151.0,0.00019759,2]
[380006566,1755471040865,-151.0,0.00019759,2]
[380006568,1755471040876,-1000.0,0.00019759,2]
[380006570,1755471040885,-151.0,0.00019759,2]
[380006572,1755471040894,-151.0,0.00019759,2]
[380006574,1755471040903,-151.0,0.00019759,2]
[380006576,1755471040912,-1000.0,0.00019759,2]
[380006578,1755471040922,-151.0,0.00019759,2]
[380006580,1755471040931,-151.0,0.00019759,2]
[380006582,1755471040941,-1000.0,0.00019759,2]
[380006584,1755471040950,-151.0,0.00019759,2]
[380006586,1755471040959,-151.0,0.00019759,2]
[380006588,1755471040969,-1000.0,0.00019759,2]
[380006589,1755471040978,-151.0,0.00019759,2]
[380006591,1755471040987,-151.0,0.00019759,2]
[380006593,1755471040996,-1000.0,0.00019759,2]
[380006595,1755471041006,-151.0,0.00019759,2]
[380006597,1755471041015,-151.0,0.00019759,2]
[380006599,1755471041024,-151.0,0.00019759,2]
[380006601,1755471041035,-151.0,0.00019759,2]
[380006603,1755471041044,-17842.522448,0.00019759,2]
[380006605,1755471041054,-1000.0,0.00019759,2]
[380006607,1755471041064,-229.57318661,0.00019759,2]
[380006609,1755471041074,-151.0,0.00019759,2]
[380006611,1755471041083,-1000.0,0.00019759,2]
[380006612,1755471041093,-151.0,0.00019759,2]
[380006613,1755471041102,-1000.0,0.00019759,2]
[380006614,1755471041111,-151.0,0.00019759,2]
[380006615,1755471041120,-993.90593041,0.00019759,2]
[380006616,1755471041130,-2183.31810187,0.00019759,2]
[380006617,1755471041140,-151.0,0.00019759,2]
[380006618,1755471041150,-151.0,0.00019759,2]
[380006619,1755471041160,-151.0,0.00019759,2]
[380006620,1755471041170,-266.57837739,0.00019759,2]
[380006622,1755471041180,-151.0,0.00019759,2]
[380006623,1755471041190,-151.0,0.00019759,2]
[380006624,1755471041200,-151.0,0.00019759,2]
[380006625,1755471041209,-151.0,0.00019759,2]
[380006626,1755471041219,-151.0,0.00019759,2]
[380006628,1755471041229,-151.0,0.00019759,2]
[380006630,1755471041238,-151.0,0.00019759,2]
[380006631,1755471041248,-151.0,0.00019759,2]
[380006632,1755471041258,-152.94290677,0.00019759,2]
[380006633,1755471041267,-151.0,0.00019759,2]
[380006634,1755471041276,-151.0,0.00019759,2]
[380006635,1755471041285,-151.0,0.00019759,2]
[380006636,1755471041295,-151.0,0.00019759,2]
[380006637,1755471041305,-151.0,0.00019759,2]
[380006638,1755471041314,-151.0,0.00019759,2]
[380006639,1755471041323,-151.0,0.00019759,2]
[380006640,1755471041333,-151.0,0.00019759,2]
[380006641,1755471041343,-151.0,0.00019759,2]
[380006642,1755471041352,-151.0,0.00019759,2]
[380006643,1755471041361,-294.0,0.00019772,2]
[380006644,1755471041371,-436.0,0.00019795,2]
[380006645,1755471041383,-198.0,0.00019795,2]
[380006646,1755471041392,-151.0,0.00019795,2]
[380006647,1755471041401,-151.0,0.00019795,2]
[380006648,1755471041411,-151.0,0.00019795,2]
[380006649,1755471041422,-198.0,0.00019795,2]
[380006650,1755471041431,-151.0,0.00019795,2]
[380006651,1755471041441,-151.0,0.00019795,2]
[380006652,1755471041451,-151.0,0.00019795,2]
[380006653,1755471041463,-2183.31810187,0.00019814,2]
[380006654,1755471041472,-294.0,0.00019833,2]
[380006655,1755471041482,-881.610112,0.00019863,2]
[380006656,1755471041490,-1994.2993245,0.00019873,2]
[380006657,1755471041500,-942.28,0.0001989,3]
[380006658,1755471041509,-471.14,0.0001989,3]
[380006659,1755471041519,-235.57,0.0001989,3]
[380006660,1755471041528,-706.75,0.0001989,3]
[380006661,1755471041537,-513.07035947,0.00019899,2]
[380006662,1755471041547,-13024.24287315,0.000199,2]
[380006663,1755471041557,-10205.96694439,0.000199,2]
[380006664,1755471041567,-294.0,0.00019918,2]
[380006665,1755471041576,-228.51191245,0.00019937,2]
[380006666,1755471041585,-329.0,0.00019938,2]
[380006667,1755471041595,-307.59546635,0.00019973,2]
[380006668,1755471041605,-500.0,0.00019973,2]
[380006669,1755471041614,-500.0,0.00019973,2]
[380006670,1755471041624,-500.0,0.00019973,2]
[380006671,1755471041633,-500.0,0.00019973,2]
[380006672,1755471041643,-626.05963948,0.00019973,2]
[380006673,1755471041653,-500.0,0.00019973,2]
[380006674,1755471041662,-500.0,0.00019973,2]
[380006675,1755471041671,-500.0,0.00019973,2]
[380006676,1755471041680,-500.0,0.00019973,2]
[380006677,1755471041690,-500.0,0.00019973,2]
[380006678,1755471041700,-500.0,0.00019973,2]
[380006679,1755471041709,-541.71037648,0.00019973,2]
[380006680,1755471041718,-501.0519514,0.00019973,2]
[380006681,1755471041727,-500.0,0.00019973,2]
[380006682,1755471041736,-500.0,0.00019973,2]
[380006683,1755471041746,-158.64845359,0.00019973,2]
[380006684,1755471041757,-258.73486462,0.00019973,2]
[380006685,1755471041767,-500.0,0.00019973,2]
[380006686,1755471041777,-500.0,0.00019973,2]
[380006687,1755471041786,-443.03042322,0.00019973,2]
[380006688,1755471041795,-380.3501662,0.00019973,2]
[380006689,1755471041803,-500.0,0.00019973,2]
[380006690,1755471041812,-500.0,0.00019973,2]
[380006691,1755471041821,-500.0,0.00019973,2]
[380006692,1755471041831,-500.0,0.00019973,2]
[380006693,1755471041839,-501.12416989,0.00019973,2]
[380006694,1755471041849,-160.31078128,0.00019973,2]
[380006695,1755471041858,-500.0,0.00019973,2]
[380006696,1755471041867,-500.0,0.00019973,2]
[380006697,1755471041877,-500.0,0.00019973,2]
[380006698,1755471041887,-500.0,0.00019973,2]
[380006699,1755471041896,-500.0,0.00019973,2]
[380006700,1755471041905,-500.0,0.00019973,2]
[380006701,1755471041914,-167.68923922,0.00019973,2]
[380006702,1755471041923,-500.0,0.00019973,2]
[380006703,1755471041932,-500.0,0.00019973,2]
[380006704,1755471041941,-500.0,0.00019973,2]
[380006705,1755471041950,-501.19436436,0.00019973,2]
[380006706,1755471041959,-500.0,0.00019973,2]
[380006707,1755471041968,-500.0,0.00019973,2]
[380006708,1755471041977,-500.0,0.00019973,2]
[380006709,1755471041990,-254.58585111,0.00019973,2]
[380006710,1755471042002,-426.45244949,0.00019973,2]
[380006711,1755471042013,-489.26136196,0.00019973,2]
[380006712,1755471042024,-500.0,0.00019973,2]
[380006713,1755471042036,-500.0,0.00019973,2]
[380006714,1755471042047,-500.0,0.00019973,2]
[380006715,1755471042056,-474.40055126,0.00019973,2]
[380006716,1755471042066,-500.0,0.00019973,2]
[380006717,1755471042076,-465.27039241,0.00019973,2]
[380006718,1755471042088,-500.0,0.00019973,2]
[380006719,1755471042099,-576.67,0.00019999,2]
[380006720,1755471042109,-480.0,0.00019999,2]
[380006721,1755471042120,-16850.21950294,0.0002,2]
[380006722,1755471042131,-100846.98679619,0.0002,2]
[380006723,1755471042141,-12277.37690369,0.0002,2]
[380006724,1755471042152,-19615.26985351,0.0002,2]
[380006725,1755471042162,-68322.52098655,0.0002,2]
[380006726,1755471042173,-28327.29049146,0.0002,2]
[380006727,1755471042184,-254.89123192,0.0002,2]
[380006728,1755471042195,-151.0,0.0002,2]
[380006729,1755471042206,-151.0,0.0002,2]
[380006730,1755471042217,-151.0,0.0002,2]
[380006731,1755471042228,-151.0,0.0002,2]
[380006732,1755471042238,-151.0,0.0002,2]
[380006733,1755471042249,-151.0,0.0002,2]
[380006734,1755471042261,-151.0,0.0002,2]
[380006735,1755471042271,-151.0,0.0002,2]
[380006736,1755471042282,-151.0,0.0002,2]
[380006737,1755471042292,-151.0,0.0002,2]
[380006738,1755471042304,-151.0,0.0002,2]
[380006739,1755471042316,-151.0,0.0002,2]
[380006740,1755471042327,-151.0,0.0002,2]
[380006741,1755471042338,-151.63404,0.0002,2]
[380006742,1755471042349,-151.0,0.0002,2]
[380006743,1755471042358,-296.102351,0.0002,2]
[380006744,1755471042368,-151.0,0.0002,2]
[380006745,1755471042379,-296.102351,0.0002,2]
[380006746,1755471042391,-296.102351,0.0002,2]
[380006747,1755471042400,-296.102351,0.0002,2]
[380006748,1755471042411,-151.0,0.0002,2]
[380006749,1755471042422,-263.492621,0.0002,2]
[380006750,1755471042434,-151.0,0.0002,2]
[380006751,1755471042444,-151.0,0.0002,2]
[380006752,1755471042460,-151.0,0.0002,2]
[380006753,1755471042472,-151.0,0.0002,2]
[380006754,1755471042483,-259.475775,0.0002,2]
[380006755,1755471042494,-151.0,0.0002,2]
[380006756,1755471042506,-442.42155829,0.0002,2]
[380006757,1755471042518,-151.0,0.0002,2]
[380006758,1755471042529,-151.0,0.0002,2]
[380006759,1755471042541,-151.0,0.0002,2]
[380006760,1755471042552,-151.0,0.0002,2]
[380006761,1755471042562,-264.318575,0.0002,2]
[380006762,1755471042572,-264.318575,0.0002,2]
[380006763,1755471042582,-264.318575,0.0002,2]
[380006764,1755471042592,-264.318575,0.0002,2]
[380006765,1755471042603,-298.742321,0.0002,2]
[380006766,1755471042613,-298.742321,0.0002,2]
[380006767,1755471042624,-298.742321,0.0002,2]
[380006768,1755471042636,-480.0,0.0002,2]
[380006769,1755471042647,-298.742321,0.0002,2]
[380006770,1755471042658,-298.742321,0.0002,2]
[380006771,1755471042669,-298.742321,0.0002,2]
[380006772,1755471042679,-151.0,0.0002,2]
[380006773,1755471042690,-290.189176,0.0002,2]
[380006774,1755471042700,-480.0,0.0002,2]
[380006775,1755471042710,-1886.36,0.0002,2]
[380006776,1755471042723,-421.04793,0.0002,2]
[380006777,1755471042734,-421.04793,0.0002,2]
[380006778,1755471042744,-421.04793,0.0002,2]
[380006779,1755471042754,-313.528886,0.0002,2]
[380006780,1755471042764,-313.528886,0.0002,2]
[380006781,1755471042774,-313.528886,0.0002,2]
[380006782,1755471042784,-421.04793,0.0002,2]
[380006783,1755471042794,-421.04793,0.0002,2]
[380006784,1755471042805,-421.04793,0.0002,2]
[380006785,1755471042815,-313.528886,0.0002,2]
[380006786,1755471042825,-313.528886,0.0002,2]
[380006787,1755471042835,-313.528886,0.0002,2]
[380006788,1755471042846,-1173.43,0.0002,2]
[380006789,1755471042856,-151.0,0.0002,2]
[380006790,1755471042866,-151.0,0.0002,2]
[380006791,1755471042876,-151.0,0.0002,2]
[380006792,1755471042887,-151.0,0.0002,2]
[380006793,1755471042896,-151.0,0.0002,2]
[380006794,1755471042907,-151.0,0.0002,2]
[380006795,1755471042917,-160.0,0.0002,3]
[380006796,1755471042927,-480.0,0.0002,2]
[380006797,1755471042937,-480.0,0.0002,2]
[380006798,1755471042947,-151.0,0.0002,2]
[380006799,1755471042958,-151.0,0.0002,2]
[380006800,1755471042968,-241.435134,0.0002,2]
[380006801,1755471042979,-480.0,0.0002,2]
[380006802,1755471042989,-151.0,0.0002,2]
[380006803,1755471042999,-151.0,0.0002,2]
[380006804,1755471043009,-151.0,0.0002,2]
[380006805,1755471043019,-151.0,0.0002,2]
[380006806,1755471043029,-151.0,0.0002,2]
[380006807,1755471043040,-151.0,0.0002,2]
[380006808,1755471043051,-151.0,0.0002,2]
[380006809,1755471043061,-480.0,0.0002,2]
[380006810,1755471043071,-633.63,0.0002,2]
[380006811,1755471043081,-480.0,0.0002,2]
[380006812,1755471043091,-151.0,0.0002,2]
[380006813,1755471043102,-151.0,0.0002,2]
[380006814,1755471043112,-151.0,0.0002,2]
[380006815,1755471043123,-151.0,0.0002,2]
[380006816,1755471043134,-151.0,0.0002,2]
[380006817,1755471043144,-151.0,0.0002,2]
[380006818,1755471043155,-151.0,0.0002,2]
[380006819,1755471043165,-151.0,0.0002,2]
[380006820,1755471043175,-151.0,0.0002,2]
[380006821,1755471043186,-1255.67,0.0002,2]
[380006822,1755471043197,-751.89,0.0002,2]
[380006823,1755471043207,-480.0,0.0002,2]
[380006824,1755471043218,-151.0,0.0002,2]
[380006825,1755471043228,-151.0,0.0002,2]
[380006826,1755471043238,-151.0,0.0002,2]
[380006827,1755471043248,-151.0,0.0002,2]
[380006828,1755471043259,-151.0,0.0002,2]
[380006829,1755471043269,-151.0,0.0002,2]
[380006830,1755471043279,-168.591531,0.0002,2]
[380006831,1755471043289,-480.0,0.0002,2]
[380006832,1755471043300,-151.0,0.0002,2]
[380006833,1755471043311,-151.0,0.0002,2]
[380006834,1755471043321,-151.0,0.0002,2]
[380006835,1755471043331,-151.0,0.0002,2]
[380006836,1755471043342,-213.995171,0.0002,2]
[380006837,1755471043353,-378.89,0.0002,2]
[380006838,1755471043363,-151.0,0.0002,2]
[380006839,1755471043374,-156.51328,0.0002,2]
[380006840,1755471043389,-151.0,0.00020013,2]
[380006841,1755471043399,-151.0,0.00020013,2]
[380006842,1755471043410,-264.318575,0.00020013,2]
[380006843,1755471043422,-264.318575,0.00020013,2]
[380006844,1755471043433,-436.0,0.00020069,2]
[380006845,1755471043444,-198.0,0.00020069,2]
[380006846,1755471043455,-292.0,0.00020069,2]
[380006847,1755471043466,-151.0,0.00020069,2]
[380006848,1755471043477,-198.0,0.00020069,2]
[380006849,1755471043487,-198.0,0.00020069,2]
[380006850,1755471043499,-198.0,0.00020069,2]
[380006851,1755471043509,-3000.0,0.00020086,2]
[380006852,1755471043520,-151.0,0.00020086,2]
[380006854,1755471043647,-151.0,0.00020086,2]
[380006855,1755471043689,-151.0,0.00020086,2]
[380006857,1755471043699,-296.102351,0.00020086,2]
[380006859,1755471043709,-296.102351,0.00020086,2]
[380006860,1755471043718,-151.0,0.00020086,2]
[380006862,1755471043728,-151.0,0.00020086,2]
[380006864,1755471043738,-151.0,0.00020088,2]
[380006866,1755471043747,-153.0,0.00020088,2]
[380006867,1755471043756,-153.0,0.00020088,2]
[380006868,1755471043766,-153.0,0.00020088,2]
[380006869,1755471043775,-153.0,0.00020088,2]
[380006870,1755471043784,-153.0,0.00020088,2]
[380006871,1755471043793,-306.0,0.00020088,2]
[380006872,1755471043802,-153.0,0.00020088,2]
[380006873,1755471043811,-153.0,0.00020088,2]
[380006874,1755471043820,-177.0,0.00020099,2]
[380006875,1755471043830,-294.0,0.00020108,2]
[380006876,1755471043839,-200.0,0.00020118,20]
[380006877,1755471043849,-200.0,0.00020118,20]
[380006878,1755471043858,-200.0,0.00020118,20]
[380006879,1755471043867,-200.0,0.00020118,20]
[380006881,1755471043877,-200.0,0.00020118,20]
[380006882,1755471043886,-200.0,0.00020118,20]
[380006883,1755471043896,-200.0,0.00020118,20]
[380006884,1755471043906,-200.0,0.00020118,20]
[380006885,1755471043916,-200.0,0.00020118,20]
[380006886,1755471043925,-200.0,0.00020118,20]
[380006887,1755471043934,-600.0,0.00020119,20]
[380006888,1755471043944,-151.0,0.00020119,2]
[380006889,1755471043954,-151.0,0.00020119,2]
[380006890,1755471043963,-177.0,0.00020132,2]
[380006891,1755471043972,-447.0,0.00020145,2]
[380006892,1755471043981,-3388.6288461,0.00020173,3]
[380006893,1755471043991,-551.99858151,0.00020175,2]
[380006894,1755471044000,-6000.0,0.00020186,2]
[380006895,1755471044010,-270.859373,0.00020187,2]
[380006896,1755471044019,-294.0,0.00020209,2]
[380006897,1755471044029,-8000.0,0.00020248,2]
[380006898,1755471044039,-467.7977665,0.00020273,2]
[380006899,1755471044049,-480.0,0.00020273,2]
[380006900,1755471044058,-480.0,0.00020273,2]
[380006901,1755471044068,-1886.36,0.00020273,2]
[380006903,1755471044077,-1173.43,0.00020273,2]
[380006905,1755471044086,-480.0,0.00020273,2]
[380006906,1755471044096,-480.0,0.00020273,2]
[380006907,1755471044106,-480.0,0.00020273,2]
[380006908,1755471044116,-480.0,0.00020273,2]
[380006909,1755471044125,-633.63,0.00020273,2]
[380006910,1755471044134,-480.0,0.00020273,2]
[380006911,1755471044144,-1255.67,0.00020273,2]
[380006912,1755471044155,-751.89,0.00020273,2]
[380006913,1755471044164,-480.0,0.00020273,2]
[380006914,1755471044173,-480.0,0.00020273,2]
[380006915,1755471044183,-480.0,0.00020273,2]
[380006916,1755471044192,-177.0,0.00020306,2]
[380006917,1755471044201,-436.0,0.00020343,2]
[380006918,1755471044211,-292.0,0.00020343,2]
[380006919,1755471044220,-151.0,0.00020343,2]
[380006920,1755471044230,-151.0,0.00020343,2]
[380006921,1755471044239,-151.0,0.00020343,2]
[380006922,1755471044248,-9000.0,0.00020382,2]
[380006923,1755471044257,-151.0,0.00020382,2]
[380006924,1755471044267,-151.0,0.00020382,2]
[380006925,1755471044276,-264.318575,0.00020382,2]
[380006926,1755471044286,-264.318575,0.00020382,2]
[380006927,1755471044295,-298.742321,0.00020382,2]
[380006928,1755471044305,-298.742321,0.00020382,2]
[380006929,1755471044314,-421.04793,0.00020382,2]
[380006930,1755471044324,-313.528886,0.00020382,2]
[380006931,1755471044334,-421.04793,0.00020382,2]
[380006932,1755471044344,-313.528886,0.00020382,2]
[380006933,1755471044354,-151.0,0.00020382,2]
[380006934,1755471044364,-151.0,0.00020382,2]
[380006935,1755471044374,-151.0,0.00020382,2]
[380006936,1755471044387,-151.0,0.00020382,2]
[380006937,1755471044397,-209.802166,0.00020382,2]
[380006938,1755471044406,-12682.46447135,0.000204,2]
[380006939,1755471044416,-160.0,0.000204,2]
[380006940,1755471044426,-160.0,0.000204,2]
[380006941,1755471044436,-215.71995163,0.000204,2]
[380006942,1755471044445,-843.71309931,0.000204,2]
[380006943,1755471044455,-417.15472785,0.000204,2]
[380006944,1755471044464,-528.48506731,0.000204,2]
[380006945,1755471044473,-160.0,0.000204,2]
[380006946,1755471044482,-160.0,0.000204,2]